Workbook

Sheet 1. 매수매도 총잔량
A3: =TODAY() -> 2023-12-15
A4: 시간 | B4: 매도총잔량 | C4: 매도건수 | D4: 매수총잔량 | E4: 매수건수 | F4: 순매수총잔량 | G4: 선물지수 | H4: 순매수건수 | I4: 평균계약수
A5: 45271.65694 | B5: 3919 | C5: 995 | D5: 3591 | E5: 832 | F5: -328 | G5: 343.25 | H5: -163 | I5: 2.012269939
B6: 건수당 계약수 | C6: 3.938693467 | D6: 건수당 계약수 | E6: 4.316105769 | F6: 건수당 순매수 계약수 | H6: 0.3774123019
A8: 시간 | B8: 매도총잔량 | C8: 매도건수 | D8: 매수총잔량 | E8: 매수건수 | F8: 순매수총잔량 | G8: 선물지수 | H8: 순매수건수 | I8: 평균계약수
A9: 08:40:00 | B9: 14557 | C9: 1276 | D9: 14276 | E9: 1209 | F9: =D9-B9 -> -281 | G9: 341.2 | H9: =(D9/E9)-(B9/C9) -> 0.3997986626 | I9: =(D9-B9)/(E9-C9) -> 4.194029851
A10: 08:41:00 | B10: 14586 | C10: 1295 | D10: 14294 | E10: 1219 | F10: -292 | G10: 341.2 | H10: =(D10/E10)-(B10/C10) -> 0.4626844587 | I10: =(D10-B10)/(E10-C10) -> 3.842105263
A11: 08:42:00 | B11: 14629 | C11: 1319 | D11: 14331 | E11: 1235 | F11: -298 | G11: 341.2 | H11: 0.5130705693 | I11: 3.547619048
A12: 08:43:00 | B12: 14693 | C12: 1356 | D12: 13967 | E12: 1244 | F12: -726 | G12: 341.2 | H12: 0.3919462387 | I12: 6.482142857
A13: 08:44:00 | B13: 14199 | C13: 1338 | D13: 10960 | E13: 1053 | F13: -3239 | G13: 341.2 | H13: -0.2037505483 | I13: 11.36491228
A14: 08:45:00 | B14: 14869 | C14: 1458 | D14: 11889 | E14: 1281 | F14: -2980 | G14: 341.2 | H14: -0.9171862903 | I14: 16.83615819
A15: 08:46:00 | B15: 13406 | C15: 1357 | D15: 13135 | E15: 1473 | F15: -271 | G15: 342.5 | H15: -0.9619693415 | I15: -2.336206897
A16: 08:47:00 | B16: 13671 | C16: 1504 | D16: 13326 | E16: 1573 | F16: -345 | G16: 342.5 | H16: -0.6180505302 | I16: -5
A17: 08:48:00 | B17: 13471 | C17: 1448 | D17: 13632 | E17: 1658 | F17: 161 | G17: 342.75 | H17: -1.081222634 | I17: 0.7666666667
A18: 08:49:00 | B18: 13639 | C18: 1463 | D18: 13775 | E18: 1747 | F18: 136 | G18: 342.75 | H18: -1.437679123 | I18: 0.4788732394
A19: 08:50:00 | B19: 13722 | C19: 1538 | D19: 13715 | E19: 1755 | F19: -7 | G19: 342.65 | H19: -1.107161778 | I19: -0.03225806452
A20: 08:51:00 | B20: 13542 | C20: 1498 | D20: 14006 | E20: 1859 | F20: 464 | G20: 342.85 | H20: -1.505895255 | I20: 1.28531856
A21: 08:52:00 | B21: 12957 | C21: 1347 | D21: 14461 | E21: 1996 | F21: 1504 | G21: 343.15 | H21: -2.374163695 | I21: 2.317411402
A22: 08:53:00 | B22: 13189 | C22: 1470 | D22: 14382 | E22: 1939 | F22: 1193 | G22: 342.95 | H22: -1.55488347 | I22: =(D22-B22)/(E22-C22) -> 2.543710021
A23: 08:54:00 | B23: 13254 | C23: 1514 | D23: 14448 | E23: 1947 | F23: 1194 | G23: 342.95 | H23: -1.333646113 | I23: 2.757505774
A24: 08:55:00 | B24: 13325 | C24: 1573 | D24: 14489 | E24: 1991 | F24: 1164 | G24: 342.95 | H24: -1.193826766 | I24: 2.784688995
A25: 08:56:00 | B25: 13321 | C25: 1553 | D25: 14681 | E25: 2020 | F25: 1360 | G25: 342.95 | H25: -1.309769976 | I25: 2.912205567
A26: 08:57:00 | B26: 13473 | C26: 1633 | D26: 14646 | E26: 1971 | F26: 1173 | G26: 342.9 | H26: -0.8197134631 | I26: 3.470414201
A27: 08:58:00 | B27: 13977 | C27: 1738 | D27: 14338 | E27: 1935 | F27: 361 | G27: 342.75 | H27: -0.63218318 | I27: 1.83248731
A28: 08:59:00 | B28: 13983 | C28: 1742 | D28: 14583 | E28: 1997 | F28: 600 | G28: 342.85 | H28: -0.7245268017 | I28: 2.352941176
A29: 09:00:00 | B29: 13839 | C29: 1701 | D29: 14681 | E29: 2007 | F29: 842 | G29: 342.9 | H29: -0.8209046116 | I29: 2.751633987
A30: 09:01:00 | B30: 13862 | C30: 1713 | D30: 14706 | E30: 2107 | F30: 844 | G30: 342.9 | H30: -1.112644007 | I30: 2.14213198
A31: 09:02:00 | B31: 13344 | C31: 1524 | D31: 15366 | E31: 2320 | F31: 2022 | G31: 343.2 | H31: -2.13262965 | I31: 2.540201005
A32: 09:03:00 | B32: 13339 | C32: 1618 | D32: 15412 | E32: 2330 | F32: 2073 | G32: 343.3 | H32: -1.629536279 | I32: 2.911516854
A33: 09:04:00 | B33: 12945 | C33: 1534 | D33: 15723 | E33: 2430 | F33: 2778 | G33: 343.4 | H33: -1.968351924 | I33: 3.100446429
A34: 09:05:00 | B34: 12264 | C34: 1377 | D34: 16369 | E34: 2583 | F34: 4105 | G34: 343.8 | H34: -2.569113282 | I34: 3.403814262
A35: 09:06:00 | B35: 12421 | C35: 1407 | D35: 16559 | E35: 2653 | F35: 4138 | G35: 343.85 | H35: -2.586389575 | I35: 3.321027287
A36: 09:07:00 | B36: 12053 | C36: 1329 | D36: 17064 | E36: 2773 | F36: 5011 | G36: 344.15 | H36: -2.915600748 | I36: 3.470221607
A37: 09:08:00 | B37: 12240 | C37: 1402 | D37: 17087 | E37: 2766 | F37: 4847 | G37: 344.1 | H37: -2.55287251 | I37: 3.553519062
A38: 09:09:00 | B38: 12631 | C38: 1542 | D38: 16892 | E38: 2674 | F38: 4261 | G38: 344 | H38: -1.874182089 | I38: 3.764134276
A39: 09:10:00 | B39: 11730 | C39: 1345 | D39: 17711 | E39: 2810 | F39: 5981 | G39: 344.35 | H39: -2.418342616 | I39: 4.082593857
A40: 09:11:00 | B40: 11134 | C40: 1244 | D40: 18218 | E40: 2927 | F40: 7084 | G40: 344.75 | H40: -2.726040512 | I40: 4.209150327
A41: 09:12:00 | B41: 11184 | C41: 1347 | D41: 18297 | E41: 2908 | F41: 7113 | G41: 344.85 | H41: -2.01094209 | I41: 4.556694427
A42: 09:13:00 | B42: 11131 | C42: 1360 | D42: 18362 | E42: 2858 | F42: 7231 | G42: 344.9 | H42: -1.759786255 | I42: 4.827102804
A43: 09:14:00 | B43: 11771 | C43: 1558 | D43: 17884 | E43: 2754 | F43: 6113 | G43: 344.75 | H43: -1.061371813 | I43: 5.111204013
A44: 09:15:00 | B44: 11938 | C44: 1644 | D44: 17661 | E44: 2747 | F44: 5723 | G44: 344.65 | H44: -0.8323616916 | I44: 5.188576609
A45: 09:16:00 | B45: 11450 | C45: 1479 | D45: 18346 | E45: 2945 | F45: 6896 | G45: 344.85 | H45: -1.512175781 | I45: 4.703956344
A46: 09:17:00 | B46: 11893 | C46: 1661 | D46: 18086 | E46: 2842 | F46: 6193 | G46: 344.7 | H46: -0.7963162013 | I46: 5.243861135
A47: 09:18:00 | B47: 12020 | C47: 1711 | D47: 17866 | E47: 2769 | F47: 5846 | G47: 344.65 | H47: -0.5729827119 | I47: 5.525519849
A48: 09:19:00 | B48: 11923 | C48: 1695 | D48: 18058 | E48: 2845 | F48: 6135 | G48: 344.7 | H48: -0.6869423664 | I48: 5.334782609
A49: 09:20:00 | B49: 12738 | C49: 1878 | D49: 17472 | E49: 2635 | F49: 4734 | G49: 344.45 | H49: -0.1520075659 | I49: 6.253632761
A50: 09:21:00 | B50: 12828 | C50: 1881 | D50: 17751 | E50: 2716 | F50: 4923 | G50: 344.5 | H50: -0.2840624288 | I50: 5.895808383
A51: 09:22:00 | B51: 12652 | C51: 1840 | D51: 18035 | E51: 2816 | F51: 5383 | G51: 344.6 | H51: -0.4716125247 | I51: =(D51-B51)/(E51-C51) -> 5.515368852
A52: 09:23:00 | B52: 11543 | C52: 1537 | D52: 18780 | E52: 3019 | F52: 7237 | G52: 344.85 | H52: -1.289481732 | I52: 4.883265857
A53: 09:24:00 | B53: 11342 | C53: 1456 | D53: 19321 | E53: 3186 | F53: 7979 | G53: 344.95 | H53: -1.72549116 | I53: 4.612138728
A54: 09:25:00 | B54: 11126 | C54: 1420 | D54: 19259 | E54: 3180 | F54: 8133 | G54: 345.05 | H54: -1.778921959 | I54: 4.621022727
A55: 09:26:00 | B55: 11065 | C55: 1399 | D55: 19605 | E55: 3270 | F55: 8540 | G55: 345.2 | H55: -1.913808028 | I55: 4.564404062
A56: 09:27:00 | B56: 10879 | C56: 1345 | D56: 19712 | E56: 3282 | F56: 8833 | G56: 345.25 | H56: -2.082381991 | I56: 4.560144553
A57: 09:28:00 | B57: 11332 | C57: 1402 | D57: 19841 | E57: 3292 | F57: 8509 | G57: 345.25 | H57: -2.055703707 | I57: 4.502116402
A58: 09:29:00 | B58: 11428 | C58: 1489 | D58: 19968 | E58: 3298 | F58: 8540 | G58: 345.25 | H58: -1.620371098 | I58: 4.720840243
A59: 09:30:00 | B59: 11524 | C59: 1490 | D59: 19847 | E59: 3268 | F59: 8323 | G59: 345.3 | H59: -1.661094773 | I59: 4.681102362
A60: 09:31:00 | B60: 11930 | C60: 1581 | D60: 19911 | E60: 3304 | F60: 7981 | G60: 345.25 | H60: -1.519525333 | I60: 4.632037145
A61: 09:32:00 | B61: 10874 | C61: 1351 | D61: 21132 | E61: 3466 | F61: 10258 | G61: 345.6 | H61: -1.951910982 | I61: 4.850118203
A62: 09:33:00 | B62: 10584 | C62: 1267 | D62: 21563 | E62: 3531 | F62: 10979 | G62: 345.8 | H62: -2.246822539 | I62: 4.849381625
A63: 09:34:00 | B63: 11301 | C63: 1471 | D63: 21065 | E63: 3468 | F63: 9764 | G63: 345.7 | H63: -1.608422779 | I63: 4.889334001
A64: 09:35:00 | B64: 11044 | C64: 1361 | D64: 21693 | E64: 3608 | F64: 10649 | G64: 345.9 | H64: -2.102149318 | I64: 4.739207833
A65: 09:36:00 | B65: 11034 | C65: 1405 | D65: 21738 | E65: 3594 | F65: 10704 | G65: 345.85 | H65: -1.80496676 | I65: 4.889904066
A66: 09:37:00 | B66: 11871 | C66: 1591 | D66: 21017 | E66: 3469 | F66: 9146 | G66: 345.75 | H66: -1.402826761 | I66: 4.870074547
A67: 09:38:00 | B67: 11982 | C67: 1620 | D67: 20815 | E67: 3386 | F67: 8833 | G67: 345.65 | H67: -1.248924766 | I67: 5.001698754
A68: 09:39:00 | B68: 11869 | C68: 1615 | D68: 20933 | E68: 3427 | F68: 9064 | G68: 345.7 | H68: -1.240968055 | I68: 5.002207506
A69: 09:40:00 | B69: 11396 | C69: 1510 | D69: 21335 | E69: 3446 | F69: 9939 | G69: 345.8 | H69: -1.355783652 | I69: 5.133780992
A70: 09:41:00 | B70: 11222 | C70: 1536 | D70: 21332 | E70: 3462 | F70: 10110 | G70: 345.8 | H70: -1.144233373 | I70: 5.249221184
A71: 09:42:00 | B71: 10899 | C71: 1443 | D71: 21649 | E71: 3532 | F71: 10750 | G71: 345.9 | H71: -1.423626105 | I71: 5.146002872
A72: 09:43:00 | B72: 11793 | C72: 1622 | D72: 20862 | E72: 3386 | F72: 9069 | G72: 345.7 | H72: -1.109401299 | I72: 5.141156463
A73: 09:44:00 | B73: 12570 | C73: 1777 | D73: 20246 | E73: 3297 | F73: 7676 | G73: 345.6 | H73: =(D73/E73)-(B73/C73) -> -0.9329857518 | I73: =(D73-B73)/(E73-C73) -> 5.05
A74: 09:45:00 | B74: 12081 | C74: 1708 | D74: 20797 | E74: 3424 | F74: 8716 | G74: 345.65 | H74: -0.9992948248 | I74: 5.079254079
A75: 09:46:00 | B75: 11583 | C75: 1627 | D75: 21305 | E75: 3516 | F75: 9722 | G75: 345.75 | H75: -1.059795313 | I75: 5.146638433
A76: 09:47:00 | B76: 11916 | C76: 1696 | D76: 20850 | E76: 3451 | F76: 8934 | G76: 345.75 | H76: -0.9842163606 | I76: 5.090598291
A77: 09:48:00 | B77: 12610 | C77: 1830 | D77: 20324 | E77: 3338 | F77: 7714 | G77: 345.55 | H77: -0.8020345287 | I77: 5.115384615
A78: 09:49:00 | B78: 12515 | C78: 1825 | D78: 20501 | E78: 3353 | F78: 7986 | G78: 345.6 | H78: -0.7433081804 | I78: 5.226439791
A79: 09:50:00 | B79: 12171 | C79: 1773 | D79: 20894 | E79: 3463 | F79: 8723 | G79: 345.65 | H79: -0.8311392419 | I79: 5.161538462
A80: 09:51:00 | B80: 11932 | C80: 1719 | D80: 21343 | E80: 3530 | F80: 9411 | G80: 345.75 | H80: -0.8950692724 | I80: 5.196576477
A81: 09:52:00 | B81: 12575 | C81: 1837 | D81: 20811 | E81: 3422 | F81: 8236 | G81: 345.6 | H81: -0.7638688406 | I81: 5.196214511
A82: 09:53:00 | B82: 12097 | C82: 1783 | D82: 21286 | E82: 3524 | F82: 9189 | G82: 345.7 | H82: -0.7443375224 | I82: 5.278001149
A83: 09:54:00 | B83: 12083 | C83: 1781 | D83: 21290 | E83: 3523 | F83: 9207 | G83: 345.7 | H83: -0.7412457449 | I83: 5.285304248
A84: 09:55:00 | B84: 12166 | C84: 1793 | D84: 21261 | E84: 3539 | F84: 9095 | G84: 345.7 | H84: -0.7776467998 | I84: 5.209049255
A85: 09:56:00 | B85: 11934 | C85: 1743 | D85: 21545 | E85: 3599 | F85: 9611 | G85: 345.8 | H85: -0.8604307278 | I85: 5.178340517
A86: 09:57:00 | B86: 11165 | C86: 1545 | D86: 22233 | E86: 3732 | F86: 11068 | G86: 345.9 | H86: -1.269141718 | I86: 5.0608139
A87: 09:58:00 | B87: 11472 | C87: 1544 | D87: 21699 | E87: 3615 | F87: 10227 | G87: 345.9 | H87: -1.427562187 | I87: =(D87-B87)/(E87-C87) -> 4.938194109
A88: 09:59:00 | B88: 10928 | C88: 1461 | D88: 22097 | E88: 3767 | F88: 11169 | G88: 345.95 | H88: -1.613867283 | I88: 4.843451865
A89: 10:00:00 | B89: 10515 | C89: 1408 | D89: 22322 | E89: 3853 | F89: 11807 | G89: 346.15 | H89: -1.674632038 | I89: 4.829038855
A90: 10:01:00 | B90: 10922 | C90: 1512 | D90: 21833 | E90: 3712 | F90: 10911 | G90: 346.05 | H90: -1.34181006 | I90: =(D90-B90)/(E90-C90) -> 4.959545455
A91: 10:02:00 | B91: 11625 | C91: 1729 | D91: 21025 | E91: 3540 | F91: 9400 | G91: 345.8 | H91: -0.7842740816 | I91: 5.190502485
A92: 10:03:00 | B92: 11606 | C92: 1790 | D92: 20985 | E92: 3525 | F92: 9379 | G92: 345.75 | H92: -0.5306073933 | I92: 5.405763689
A93: 10:04:00 | B93: 11665 | C93: 1811 | D93: 20876 | E93: 3493 | F93: 9211 | G93: 345.75 | H93: -0.4646682337 | I93: 5.476218787
A94: 10:05:00 | B94: 11621 | C94: 1781 | D94: 21022 | E94: 3534 | F94: 9401 | G94: 345.8 | H94: -0.57648568 | I94: 5.362806617
A95: 10:06:00 | B95: 11719 | C95: 1833 | D95: 20955 | E95: 3503 | F95: 9236 | G95: 345.75 | H95: -0.411328829 | I95: 5.530538922
A96: 10:07:00 | B96: 11898 | C96: 1905 | D96: 20643 | E96: 3406 | F96: 8745 | G96: 345.6 | H96: -0.1848941886 | I96: 5.826115923
A97: 10:08:00 | B97: 12193 | C97: 2010 | D97: 20174 | E97: 3278 | F97: 7981 | G97: 345.45 | H97: 0.08819326188 | I97: =(D97-B97)/(E97-C97) -> 6.294164038
A98: 10:09:00 | B98: 12158 | C98: 1994 | D98: 20249 | E98: 3312 | F98: 8091 | G98: 345.45 | H98: 0.01653662679 | I98: 6.138846737
A99: 10:10:00 | B99: 11935 | C99: 1923 | D99: 20644 | E99: 3463 | F99: 8709 | G99: 345.55 | H99: -0.2451430312 | I99: 5.655194805
A100: 10:11:00 | B100: 12051 | C100: 1967 | D100: 20649 | E100: 3458 | F100: 8598 | G100: 345.55 | H100: -0.1552179792 | I100: 5.766599598
A101: 10:12:00 | B101: 11427 | C101: 1761 | D101: 21208 | E101: 3643 | F101: 9781 | G101: 345.8 | H101: -0.6673511217 | I101: 5.197130712
A102: 10:13:00 | B102: 11386 | C102: 1702 | D102: 21564 | E102: 3716 | F102: 10178 | G102: 345.9 | H102: -0.8867627397 | I102: 5.053624628
A103: 10:14:00 | B103: 11585 | C103: 1770 | D103: 21324 | E103: 3673 | F103: 9739 | G103: 345.8 | H103: -0.7395892457 | I103: 5.117708881
A104: 10:15:00 | B104: 11450 | C104: 1733 | D104: 21432 | E104: 3715 | F104: 9982 | G104: 345.9 | H104: -0.8379954008 | I104: 5.036326942
A105: 10:16:00 | B105: 11045 | C105: 1594 | D105: 21692 | E105: 3795 | F105: 10647 | G105: 346 | H105: -1.21316713 | I105: 4.837346661
A106: 10:17:00 | B106: 11029 | C106: 1586 | D106: 21699 | E106: 3819 | F106: 10670 | G106: 346.05 | H106: -1.272118369 | I106: 4.778325123
A107: 10:18:00 | B107: 11474 | C107: 1729 | D107: 21360 | E107: 3709 | F107: 9886 | G107: 345.9 | H107: -0.8772412189 | I107: 4.992929293
A108: 10:19:00 | B108: 11394 | C108: 1726 | D108: 21468 | E108: 3738 | F108: 10074 | G108: 345.95 | H108: -0.8582123281 | I108: 5.00695825
A109: 10:20:00 | B109: 11293 | C109: 1692 | D109: 21447 | E109: 3773 | F109: 10154 | G109: 346 | H109: -0.9900138097 | I109: 4.879384911
A110: 10:21:00 | B110: 11213 | C110: 1660 | D110: 21547 | E110: 3816 | F110: 10334 | G110: 346 | H110: -1.108330808 | I110: 4.793135436
A111: 10:22:00 | B111: 11529 | C111: 1758 | D111: 21318 | E111: 3741 | F111: 9789 | G111: 345.9 | H111: -0.8595441346 | I111: 4.936459909
A112: 10:23:00 | B112: 11083 | C112: 1596 | D112: 21769 | E112: 3891 | F112: 10686 | G112: 346.1 | H112: -1.349529858 | I112: 4.65620915
A113: 10:24:00 | B113: 11030 | C113: 1572 | D113: 21803 | E113: 3899 | F113: 10773 | G113: 346.1 | H113: -1.424592787 | I113: 4.629565965
A114: 10:25:00 | B114: 11016 | C114: 1574 | D114: 21842 | E114: 3913 | F114: 10826 | G114: 346.1 | H114: -1.416822886 | I114: 4.628473707
A115: 10:26:00 | B115: 11444 | C115: 1723 | D115: 21431 | E115: 3752 | F115: 9987 | G115: 345.95 | H115: -0.9300166628 | I115: 4.922129128
A116: 10:27:00 | B116: 11592 | C116: 1757 | D116: 21409 | E116: 3748 | F116: 9817 | G116: 345.95 | H116: -0.8854964348 | I116: 4.930688096
A117: 10:28:00 | B117: 11603 | C117: 1779 | D117: 21529 | E117: 3757 | F117: 9926 | G117: 345.95 | H117: -0.7918335091 | I117: 5.018200202
A118: 10:29:00 | B118: 11743 | C118: 1837 | D118: 21308 | E118: 3668 | F118: 9565 | G118: 345.85 | H118: -0.5833274464 | I118: 5.223921354
A119: 10:30:00 | B119: 11824 | C119: 1923 | D119: 21033 | E119: 3611 | F119: 9209 | G119: 345.8 | H119: -0.3240236505 | I119: 5.45556872
A120: 10:31:00 | B120: 11906 | C120: 1939 | D120: 21084 | E120: 3635 | F120: 9178 | G120: 345.8 | H120: -0.3400033909 | I120: 5.411556604
A121: 10:32:00 | B121: 12063 | C121: 2007 | D121: 20887 | E121: 3546 | F121: 8824 | G121: 345.7 | H121: -0.1201644498 | I121: 5.733593242
A122: 10:33:00 | B122: 12170 | C122: 2043 | D122: 20622 | E122: 3432 | F122: 8452 | G122: 345.55 | H122: 0.05181516966 | I122: 6.084953204
A123: 10:34:00 | B123: 12445 | C123: 2137 | D123: 20458 | E123: 3376 | F123: 8013 | G123: 345.45 | H123: 0.236249659 | I123: 6.467312349
A124: 10:35:00 | B124: 11884 | C124: 1952 | D124: 21017 | E124: 3577 | F124: 9133 | G124: 345.7 | H124: -0.2125206809 | I124: 5.620307692
A125: 10:36:00 | B125: 11955 | C125: 1998 | D125: 21075 | E125: 3575 | F125: 9120 | G125: 345.65 | H125: -0.08837858838 | I125: 5.78313253
A126: 10:37:00 | B126: 12254 | C126: 2121 | D126: 20571 | E126: 3474 | F126: 8317 | G126: 345.5 | H126: 0.1439527743 | I126: 6.147080562
A127: 10:38:00 | B127: 12115 | C127: 2048 | D127: 20704 | E127: 3493 | F127: 8589 | G127: 345.6 | H127: 0.01175579395 | I127: 5.943944637
A128: 10:39:00 | B128: 12283 | C128: 2118 | D128: 20682 | E128: 3451 | F128: 8399 | G128: 345.5 | H128: 0.193706495 | I128: 6.300825206
A129: 10:40:00 | B129: 12272 | C129: 2136 | D129: 20763 | E129: 3482 | F129: 8491 | G129: 345.5 | H129: 0.2176339742 | I129: 6.308320951
A130: 10:41:00 | B130: 11873 | C130: 1956 | D130: 21200 | E130: 3633 | F130: 9327 | G130: 345.75 | H130: -0.2346431569 | I130: =(D130-B130)/(E130-C130) -> 5.561717352
A131: 10:42:00 | B131: 11809 | C131: 1917 | D131: 21360 | E131: 3700 | F131: 9551 | G131: 345.75 | H131: =(D131/E131)-(B131/C131) -> -0.3871730886 | I131: =(D131-B131)/(E131-C131) -> 5.356702187
A132: 10:43:00 | B132: 11816 | C132: 1924 | D132: 21383 | E132: 3693 | F132: 9567 | G132: 345.75 | H132: -0.3512286266 | I132: 5.408140192
A133: 10:44:00 | B133: 12298 | C133: 2087 | D133: 20873 | E133: 3527 | F133: 8575 | G133: 345.55 | H133: 0.02539177206 | I133: 5.954861111
A134: 10:45:00 | B134: 11983 | C134: 1980 | D134: 21203 | E134: 3640 | F134: 9220 | G134: 345.65 | H134: =(D134/E134)-(B134/C134) -> -0.227020202 | I134: =(D134-B134)/(E134-C134) -> 5.554216867
A135: 10:46:00 | B135: 11613 | C135: 1817 | D135: 21565 | E135: 3793 | F135: 9952 | G135: 345.85 | H135: =(D135/E135)-(B135/C135) -> -0.7058311076 | I135: =(D135-B135)/(E135-C135) -> 5.036437247
A136: 10:47:00 | B136: 11727 | C136: 1874 | D136: 21570 | E136: 3766 | F136: 9843 | G136: 345.85 | H136: -0.5301750596 | I136: 5.20243129
A137: 10:48:00 | B137: 11844 | C137: 1917 | D137: 21456 | E137: 3738 | F137: 9612 | G137: 345.8 | H137: -0.4384358586 | I137: 5.278418451
A138: 10:49:00 | B138: 11877 | C138: 1930 | D138: 21492 | E138: 3747 | F138: 9615 | G138: 345.8 | H138: -0.4180973795 | I138: 5.291689598
A139: 10:50:00 | B139: 12468 | C139: 2139 | D139: 20888 | E139: 3518 | F139: 8420 | G139: 345.55 | H139: 0.1085724628 | I139: 6.105873822
A140: 10:51:00 | B140: 12348 | C140: 2089 | D140: 21000 | E140: 3591 | F140: 8652 | G140: 345.65 | H140: -0.06300896649 | I140: 5.760319574
A141: 10:52:00 | B141: 12614 | C141: 2181 | D141: 20759 | E141: 3502 | F141: 8145 | G141: 345.5 | H141: 0.144170057 | I141: 6.165783497
A142: 10:53:00 | B142: 12632 | C142: 2179 | D142: 20740 | E142: 3492 | F142: 8108 | G142: 345.5 | H142: 0.1421351472 | I142: 6.175171363
A143: 10:54:00 | B143: 12732 | C143: 2216 | D143: 20604 | E143: 3474 | F143: 7872 | G143: 345.45 | H143: 0.1854280067 | I143: 6.257551669
A144: 10:55:00 | B144: 12997 | C144: 2306 | D144: 20264 | E144: 3356 | F144: 7267 | G144: 345.4 | H144: 0.4019741215 | I144: 6.920952381
A145: 10:56:00 | B145: 13194 | C145: 2396 | D145: 19953 | E145: 3253 | F145: 6759 | G145: 345.25 | H145: 0.6270449212 | I145: 7.886814469
A146: 10:57:00 | B146: 12548 | C146: 2161 | D146: 20624 | E146: 3490 | F146: 8076 | G146: 345.5 | H146: 0.1028845555 | I146: 6.076749436
A147: 10:58:00 | B147: 12831 | C147: 2275 | D147: 20273 | E147: 3390 | F147: 7442 | G147: 345.4 | H147: 0.3402359882 | I147: 6.674439462
A148: 10:59:00 | B148: 12741 | C148: 2134 | D148: 20285 | E148: 3378 | F148: 7544 | G148: 345.35 | H148: 0.03455458801 | I148: 6.064308682
A149: 11:00:00 | B149: 12793 | C149: 2166 | D149: 20252 | E149: 3374 | F149: 7459 | G149: 345.35 | H149: 0.09609221788 | I149: 6.174668874
A150: 11:01:00 | B150: 12455 | C150: 2063 | D150: 20620 | E150: 3478 | F150: 8165 | G150: 345.5 | H150: -0.1086296329 | I150: 5.770318021
A151: 11:02:00 | B151: 12295 | C151: 2025 | D151: 20787 | E151: 3540 | F151: 8492 | G151: 345.6 | H151: -0.19957104 | I151: 5.605280528
A152: 11:03:00 | B152: 12527 | C152: 2111 | D152: 20595 | E152: 3479 | F152: 8068 | G152: 345.5 | H152: -0.01434988765 | I152: 5.897660819
A153: 11:04:00 | B153: 12808 | C153: 2217 | D153: 20418 | E153: 3415 | F153: 7610 | G153: 345.45 | H153: 0.2017401802 | I153: 6.352253756
A154: 11:05:00 | B154: 12347 | C154: 2046 | D154: 20863 | E154: 3560 | F154: 8516 | G154: 345.55 | H154: -0.1743085989 | I154: 5.624834875
A155: 11:06:00 | B155: 12690 | C155: 2153 | D155: 20582 | E155: 3455 | F155: 7892 | G155: 345.5 | H155: 0.06306227705 | I155: 6.061443932
A156: 11:07:00 | B156: 12429 | C156: 2050 | D156: 20905 | E156: 3567 | F156: 8476 | G156: 345.6 | H156: -0.2022596019 | I156: 5.587343441
A157: 11:08:00 | B157: 12161 | C157: 1954 | D157: 21136 | E157: 3662 | F157: 8975 | G157: 345.65 | H157: -0.4519343592 | I157: 5.254683841
A158: 11:09:00 | B158: 11889 | C158: 1897 | D158: 21387 | E158: 3753 | F158: 9498 | G158: 345.75 | H158: -0.5686230141 | I158: 5.117456897
A159: 11:10:00 | B159: 11512 | C159: 1740 | D159: 21660 | E159: 3824 | F159: 10148 | G159: 345.9 | H159: -0.9518660126 | I159: 4.869481766
A160: 11:11:00 | B160: 11572 | C160: 1773 | D160: 21484 | E160: 3789 | F160: 9912 | G160: 345.9 | H160: -0.856693099 | I160: 4.916666667
A161: 11:12:00 | B161: 11723 | C161: 1866 | D161: 21409 | E161: 3758 | F161: 9686 | G161: 345.8 | H161: -0.5855090419 | I161: 5.119450317
A162: 11:13:00 | B162: 11592 | C162: 1801 | D162: 21625 | E162: 3789 | F162: 10033 | G162: 345.85 | H162: -0.7291135727 | I162: 5.046780684
A163: 11:14:00 | B163: 11682 | C163: 1862 | D163: 21480 | E163: 3766 | F163: 9798 | G163: 345.85 | H163: -0.5702346679 | I163: 5.146008403
A164: 11:15:00 | B164: 11758 | C164: 1848 | D164: 21477 | E164: 3786 | F164: 9719 | G164: 345.85 | H164: -0.6898124327 | I164: 5.01496388
A165: 11:16:00 | B165: 11479 | C165: 1772 | D165: 21693 | E165: 3850 | F165: 10214 | G165: 345.9 | H165: -0.8434455161 | I165: 4.915303176
A166: 11:17:00 | B166: 11637 | C166: 1842 | D166: 21587 | E166: 3816 | F166: 9950 | G166: 345.85 | H166: -0.6606189267 | I166: 5.040526849
A167: 11:18:00 | B167: 11654 | C167: 1819 | D167: 21604 | E167: 3823 | F167: 9950 | G167: 345.9 | H167: -0.7557575549 | I167: 4.96506986
A168: 11:19:00 | B168: 11590 | C168: 1796 | D168: 21919 | E168: 3848 | F168: 10329 | G168: 345.9 | H168: -0.7570235775 | I168: 5.033625731
A169: 11:20:00 | B169: 11537 | C169: 1790 | D169: 22011 | E169: 3866 | F169: 10474 | G169: 345.9 | H169: -0.7517697619 | I169: 5.045279383
A170: 11:21:00 | B170: 11722 | C170: 1838 | D170: 21648 | E170: 3852 | F170: 9926 | G170: 345.85 | H170: -0.7576466361 | I170: 4.928500497
A171: 11:22:00 | B171: 11848 | C171: 1871 | D171: 21542 | E171: 3809 | F171: 9694 | G171: 345.8 | H171: -0.6768899056 | I171: 5.002063983
A172: 11:23:00 | B172: 12003 | C172: 1920 | D172: 21460 | E172: 3789 | F172: 9457 | G172: 345.8 | H172: -0.587798974 | I172: 5.059925094
A173: 11:24:00 | B173: 11977 | C173: 1909 | D173: 21579 | E173: 3812 | F173: 9602 | G173: 345.85 | H173: -0.6131574521 | I173: 5.045717288
A174: 11:25:00 | B174: 11970 | C174: 1892 | D174: 21571 | E174: 3818 | F174: 9601 | G174: 345.8 | H174: -0.6768218199 | I174: 4.984942887
A175: 11:26:00 | B175: 12393 | C175: 2052 | D175: 20940 | E175: 3597 | F175: 8547 | G175: 345.65 | H175: -0.2179557526 | I175: 5.532038835
A176: 11:27:00 | B176: 12485 | C176: 2090 | D176: 20885 | E176: 3596 | F176: 8400 | G176: 345.6 | H176: -0.1658421638 | I176: 5.577689243
A177: 11:28:00 | B177: 12897 | C177: 2202 | D177: 20680 | E177: 3520 | F177: 7783 | G177: 345.55 | H177: 0.01805177112 | I177: 5.905159332
A178: 11:29:00 | B178: 13149 | C178: 2272 | D178: 20432 | E178: 3440 | F178: 7283 | G178: 345.45 | H178: 0.1521229119 | I178: 6.235445205
A179: 11:30:00 | B179: 13170 | C179: 2301 | D179: 20457 | E179: 3460 | F179: 7287 | G179: 345.4 | H179: 0.1888293102 | I179: 6.287316652
A180: 11:31:00 | B180: 13268 | C180: 2332 | D180: 20287 | E180: 3397 | F180: 7019 | G180: 345.4 | H180: 0.2824972696 | I180: 6.590610329
A181: 11:32:00 | B181: 12780 | C181: 2168 | D181: 20731 | E181: 3577 | F181: 7951 | G181: 345.55 | H181: -0.09919514487 | I181: 5.643009226
A182: 11:33:00 | B182: 13126 | C182: 2301 | D182: 20514 | E182: 3472 | F182: 7388 | G182: 345.4 | H182: 0.2039338236 | I182: 6.309137489
A183: 11:34:00 | B183: 13052 | C183: 2266 | D183: 20667 | E183: 3528 | F183: 7615 | G183: 345.45 | H183: 0.09806380628 | I183: 6.0340729
A184: 11:35:00 | B184: 13370 | C184: 2381 | D184: 20331 | E184: 3418 | F184: 6961 | G184: 345.35 | H184: 0.3329276364 | I184: 6.712632594
A185: 11:36:00 | B185: 13361 | C185: 2373 | D185: 20166 | E185: 3385 | F185: 6805 | G185: 345.4 | H185: 0.327033758 | I185: 6.7243083
A186: 11:37:00 | B186: 13180 | C186: 2313 | D186: 20384 | E186: 3453 | F186: 7204 | G186: 345.45 | H186: 0.2050451064 | I186: 6.319298246
A187: 11:38:00 | B187: 13186 | C187: 2322 | D187: 20406 | E187: 3424 | F187: 7220 | G187: 345.4 | H187: 0.2809710248 | I187: 6.551724138
A188: 11:39:00 | B188: 13302 | C188: 2364 | D188: 20274 | E188: 3411 | F188: 6972 | G188: 345.4 | H188: 0.3168079682 | I188: 6.659025788
A189: 11:40:00 | B189: 13430 | C189: 2410 | D189: 20168 | E189: 3373 | F189: 6738 | G189: 345.35 | H189: 0.4066328533 | I189: 6.996884735
A190: 11:41:00 | B190: 13345 | C190: 2370 | D190: 20136 | E190: 3421 | F190: 6791 | G190: 345.35 | H190: 0.2551965584 | I190: 6.461465271
A191: 11:42:00 | B191: 13308 | C191: 2363 | D191: 20233 | E191: 3433 | F191: 6925 | G191: 345.4 | H191: 0.2618550454 | I191: 6.471962617
A192: 11:43:00 | B192: 13165 | C192: 2296 | D192: 20480 | E192: 3494 | F192: 7315 | G192: 345.45 | H192: 0.1275918 | I192: 6.106010017
A193: 11:44:00 | B193: 13132 | C193: 2282 | D193: 20517 | E193: 3535 | F193: 7385 | G193: 345.5 | H193: 0.04935916905 | I193: 5.893854749
A194: 11:45:00 | B194: 13258 | C194: 2320 | D194: 20306 | E194: 3478 | F194: 7048 | G194: 345.45 | H194: 0.1237577086 | I194: 6.086355786
A195: 11:46:00 | B195: 13274 | C195: 2343 | D195: 20308 | E195: 3443 | F195: 7034 | G195: 345.4 | H195: 0.2329582101 | I195: 6.394545455
A196: 11:47:00 | B196: 13276 | C196: 2332 | D196: 20338 | E196: 3489 | F196: 7062 | G196: 345.4 | H196: 0.1362100048 | I196: 6.103716508
A197: 11:48:00 | B197: 13045 | C197: 2254 | D197: 20506 | E197: 3538 | F197: 7461 | G197: 345.5 | H197: 0.008440995294 | I197: 5.810747664
A198: 11:49:00 | B198: 12843 | C198: 2187 | D198: 20705 | E198: 3612 | F198: 7862 | G198: 345.6 | H198: -0.1401466989 | I198: 5.517192982
A199: 11:50:00 | B199: 12829 | C199: 2170 | D199: 20763 | E199: 3624 | F199: 7934 | G199: 345.6 | H199: =(D199/E199)-(B199/C199) -> -0.1826769311 | I199: =(D199-B199)/(E199-C199) -> 5.456671252
A200: 11:51:00 | B200: 12929 | C200: 2195 | D200: 20737 | E200: 3607 | F200: 7808 | G200: 345.6 | H200: -0.1411060372 | I200: 5.529745042
A201: 11:52:00 | B201: 13102 | C201: 2263 | D201: 20543 | E201: 3545 | F201: 7441 | G201: 345.55 | H201: 0.005262682249 | I201: 5.804212168
A202: 11:53:00 | B202: 13080 | C202: 2251 | D202: 20591 | E202: 3574 | F202: 7511 | G202: 345.55 | H202: -0.04941893636 | I202: 5.677248677
A203: 11:54:00 | B203: 13217 | C203: 2299 | D203: 20369 | E203: 3487 | F203: 7152 | G203: 345.5 | H203: 0.09238964136 | I203: 6.02020202
... 232 more rows

Sheet 2. 순매수에 따른 익일가격 (hidden)
I1: 15:35:00 | T1: 15:45:00 | AB1: 발생횟수 | AC1: 성공횟수 | AD1: 확률
B2: 날짜 | C2: 시간 | D2: 매도총잔량 | E2: 매도건수 | F2: 매수총잔량 | G2: 매수건수 | H2: 순매수총잔량 | I2: 선물지수 | J2: 순매수건수 | K2: 평균계약수 | M2: 날짜 | N2: 시간 | O2: 매도총잔량 | P2: 매도건수 | Q2: 매수총잔량 | R2: 매수건수 | S2: 순매수총잔량 | T2: 선물지수 | U2: 순매수건수 | V2: 평균계약수 | W2: 종가 | Y2: 순매수총잔량 | Z2: 시작가 | AA2: 일치여부 | AB2: =COUNTA(AA4:AA1000) -> 48 | AC2: =COUNTIF(AA4:AA1000,"성공") -> 25 | AD2: =AC2/AB2 -> 0.5208333333
B3: 2023-10-12 | C3: 15:35:00 | D3: 9508 | E3: 1216 | F3: 15618 | G3: 2033 | H3: 6110 | I3: 330.4 | J3: -0.1368359567 | K3: 7.478580171 | M3: 2023-10-12 | N3: 15:46:00 | O3: 10474 | P3: 1101 | Q3: 13874 | R3: 1542 | S3: 3400 | T3: 330.45 | U3: -0.5157638793 | V3: 7.709750567 | W3: =T3 -> 330.45 | Y3: =IF(H3>S3,"하락","상승") -> 하락 | AB3: 순매수총잔량 증감율
A4: 금 | B4: 2023-10-13 | C4: 15:35:00 | D4: 14867 | E4: 1854 | F4: 13866 | G4: 1712 | H4: -1001 | I4: 327.45 | J4: 0.08042096402 | K4: 7.049295775 | M4: 2023-10-13 | N4: 15:46:00 | O4: 11298 | P4: 1240 | Q4: 11489 | R4: 1268 | S4: 191 | T4: 327.85 | U4: -0.05056477053 | V4: 6.821428571 | W4: 327.85 | Y4: 상승 | Z4: 327.45 | AA4: =IF(AND(Y3="상승",Z4>W3),"성공",IF(AND(Y3="하락",Z4<W3),"성공",IF(AND(Y3="상승",Z4=W3),"동일가",IF(AND(Y3="하락",Z4=W3),"동일가","실패")))) -> 성공 | AB4: =S4/H4-1 -> -1.190809191
B5: 2023-10-16 | C5: 15:35:00 | D5: 15940 | E5: 1970 | F5: 11709 | G5: 1602 | H5: -4231 | I5: 325.05 | J5: -0.7823817943 | K5: 11.49728261 | M5: 2023-10-16 | N5: 15:46:00 | O5: 7849 | P5: 1022 | Q5: 5360 | R5: 774 | S5: -2489 | T5: 324.85 | U5: -0.7549745395 | V5: 10.03629032 | W5: 324.85 | Y5: =IF(H5>S5,"하락","상승") -> 상승 | Z5: 326.2 | AA5: 실패 | AB5: -0.4117229969
B6: 2023-10-17 | C6: 15:35:00 | D6: 13240 | E6: 1889 | F6: 17947 | G6: 2371 | H6: 4707 | I6: 328.7 | J6: 0.5603805378 | K6: 9.765560166 | M6: 2023-10-17 | N6: 15:46:00 | O6: 4526 | P6: 1045 | Q6: 8044 | R6: 1103 | S6: 3518 | T6: 328.8 | U6: 2.961737237 | V6: 60.65517241 | W6: 328.8 | Y6: 하락 | Z6: 327.15 | AA6: 성공 | AB6: -0.2526025069
B7: 2023-10-18 | C7: 15:35:00 | D7: 12859 | E7: 1924 | F7: 19132 | G7: 2629 | H7: 6273 | I7: 330.15 | J7: 0.5938198124 | K7: 8.89787234 | M7: 2023-10-18 | N7: 15:46:00 | O7: 5359 | P7: 994 | Q7: 9271 | R7: 1403 | S7: 3912 | T7: 330.2 | U7: 1.216634805 | V7: 9.564792176 | W7: 330.2 | Y7: 하락 | Z7: 327.95 | AA7: 성공 | AB7: -0.3763749402
B8: 2023-10-19 | C8: 15:35:00 | D8: 21327 | E8: 2960 | F8: 9834 | G8: 1197 | H8: -11493 | I8: 323.7 | J8: 1.01047128 | K8: 6.519001702 | M8: 2023-10-19 | N8: 15:46:00 | O8: 9871 | P8: 1718 | Q8: 5219 | R8: 684 | S8: -4652 | T8: 323.7 | U8: 1.8844825 | V8: 4.499032882 | W8: 323.7 | Y8: 상승 | Z8: 326.5 | AA8: 성공 | AB8: -0.5952318803
A9: 금 | B9: 2023-10-20 | C9: 15:35:00 | D9: 18708 | E9: 2366 | F9: 11741 | G9: 1732 | H9: -6967 | I9: 319.1 | J9: -0.263889643 | K9: 7.72796518 | M9: 2023-10-20 | N9: 15:46:00 | O9: 9208 | P9: 1203 | Q9: 6245 | R9: 949 | S9: -2963 | T9: 318.85 | U9: -1.073586669 | V9: 11.66535433 | W9: 318.85 | Y9: 상승 | Z9: 321 | AA9: 실패 | AB9: -0.5747093441
B10: 2023-10-23 | C10: 15:35:00 | D10: 14892 | E10: 2334 | F10: 14494 | G10: 1833 | H10: -398 | I10: 317.15 | J10: 1.52679314 | K10: 0.7944111776 | M10: 2023-10-23 | N10: 15:46:00 | O10: 8073 | P10: 1395 | Q10: 6831 | R10: 945 | S10: -1242 | T10: 317 | U10: 1.441474654 | V10: 2.76 | W10: 317 | Y10: 하락 | Z10: 317.15 | AA10: =IF(AND(Y9="상승",Z10>W9),"성공",IF(AND(Y9="하락",Z10<W9),"성공",IF(AND(Y9="상승",Z10=W9),"동일가",IF(AND(Y9="하락",Z10=W9),"동일가","실패")))) -> 실패 | AB10: =S10/H10-1 -> 2.120603015
B11: 2023-10-24 | C11: 15:35:00 | D11: 11514 | E11: 1530 | F11: 17453 | G11: 2719 | H11: 5939 | I11: 319.65 | J11: -1.106586187 | K11: 4.994953743 | M11: 2023-10-24 | N11: 15:46:00 | O11: 5906 | P11: 849 | Q11: 7700 | R11: 1211 | S11: 1794 | T11: 319.55 | U11: -0.598037814 | V11: 4.955801105 | W11: 319.55 | Y11: 하락 | Z11: 318.55 | AA11: 실패 | AB11: -0.6979289443
B12: 2023-10-25 | C12: 15:35:00 | D12: 18960 | E12: 2689 | F12: 10553 | G12: 1355 | H12: -8407 | I12: 317.75 | J12: 0.9912027057 | K12: 5.52532391 | M12: 2023-10-25 | N12: 15:46:00 | O12: 8726 | P12: 1370 | Q12: 4076 | R12: 566 | S12: -4650 | T12: 317.85 | U12: 0.8320703619 | V12: 5.78358209 | W12: 317.85 | Y12: 상승 | Z12: 320.3 | AA12: 실패 | AB12: -0.4468894968
B13: 2023-10-26 | C13: 15:35:00 | D13: 20611 | E13: 2970 | F13: 8651 | G13: 1141 | H13: -11960 | I13: 309.4 | J13: 0.5471770049 | K13: 6.249262537 | M13: 2023-10-26 | N13: 15:46:00 | O13: 8791 | P13: 1423 | Q13: 6158 | R13: 680 | S13: -2633 | T13: 309.15 | U13: 2.878088959 | V13: 3.543741588 | W13: 309.15 | Y13: =IF(H13>S13,"하락","상승") -> 상승 | Z13: 312.95 | AA13: 실패 | AB13: -0.7798494983
A14: 금 | B14: 2023-10-27 | C14: 15:35:00 | D14: 14273 | E14: 2133 | F14: 13278 | G14: 1990 | H14: -995 | I14: 309.5 | J14: -0.01915249006 | K14: 6.958041958 | M14: 2023-10-27 | N14: 15:46:00 | O14: 7000 | P14: 1081 | Q14: 6563 | R14: 956 | S14: -437 | T14: 309.2 | U14: 0.3895771001 | V14: 3.496 | W14: 309.2 | Y14: 상승 | Z14: 309.95 | AA14: 성공 | AB14: -0.5608040201
B15: 2023-10-30 | C15: 15:35:00 | D15: 10351 | E15: 1519 | F15: 18337 | G15: 2271 | H15: 7986 | I15: 310.3 | J15: 1.26006501 | K15: 10.61968085 | M15: 2023-10-30 | N15: 15:46:00 | O15: 3324 | P15: 627 | Q15: 7833 | R15: 941 | S15: 4509 | T15: 310.2 | U15: 3.022687866 | V15: 14.35987261 | W15: 310.2 | Y15: 하락 | Z15: 307.25 | AA15: 실패 | AB15: -0.4353869271
B16: 2023-10-31 | C16: 15:35:00 | D16: 19479 | E16: 2879 | F16: 10061 | G16: 1313 | H16: -9418 | I16: 306.75 | J16: 0.8967137877 | K16: 6.014048531 | M16: 2023-10-31 | N16: 15:46:00 | O16: 9313 | P16: 1622 | Q16: 4459 | R16: 643 | S16: -4854 | T16: 307.1 | U16: 1.19300424 | V16: 4.958120531 | W16: 307.1 | Y16: 상승 | Z16: 311.65 | AA16: =IF(AND(Y15="상승",Z16>W15),"성공",IF(AND(Y15="하락",Z16<W15),"성공",IF(AND(Y15="상승",Z16=W15),"동일가",IF(AND(Y15="하락",Z16=W15),"동일가","실패")))) -> 실패 | AB16: =S16/H16-1 -> -0.4846039499
B17: 2023-11-01 | C17: 15:35:00 | D17: 12505 | E17: 1840 | F17: 18703 | G17: 2301 | H17: 6198 | I17: 310.8 | J17: 1.332009476 | K17: 13.44468547 | M17: 2023-11-01 | N17: 15:46:00 | O17: 6095 | P17: 1011 | Q17: 7729 | R17: 1068 | S17: 1634 | T17: 311.05 | U17: 1.208206915 | V17: 28.66666667 | W17: 311.05 | Y17: 하락 | Z17: 308.4 | AA17: 성공 | AB17: -0.7363665699
B18: 2023-11-02 | C18: 15:35:00 | D18: 15256 | E18: 2159 | F18: 17094 | G18: 1861 | H18: 1838 | I18: 315.9 | J18: 2.119149834 | K18: -6.167785235 | M18: 2023-11-02 | N18: 15:46:00 | O18: 7632 | P18: 1221 | Q18: 7674 | R18: 962 | S18: 42 | T18: 316.15 | U18: 1.726516727 | V18: -0.1621621622 | W18: 316.15 | Y18: 하락 | Z18: 316.05 | AA18: 실패 | AB18: -0.9771490751
A19: 금 | B19: 2023-11-03 | C19: 15:35:00 | D19: 15120 | E19: 2050 | F19: 15477 | G19: 1950 | H19: 357 | I19: 319.5 | J19: 0.5613133208 | K19: -3.57 | M19: 2023-11-03 | N19: 15:45:00 | O19: 14160 | P19: 1654 | Q19: 13848 | R19: 1299 | S19: -312 | T19: 319.6 | U19: 2.099443996 | V19: 0.8788732394 | W19: 319.6 | Y19: =IF(H19>S19,"하락","상승") -> 하락 | Z19: 319.7 | AA19: 실패 | AB19: -1.87394958
B20: 2023-11-06 | C20: 15:35:00 | D20: 3920 | E20: 606 | F20: 24897 | G20: 3711 | H20: 20977 | I20: 334.4 | J20: 0.2403264579 | K20: 6.755877617 | M20: 2023-11-06 | N20: 15:45:00 | O20: 16699 | P20: 1125 | Q20: 25667 | R20: 2368 | S20: 8968 | T20: 335.3 | U20: -4.004450826 | V20: 7.214802896 | W20: 335.3 | Y20: 하락 | Z20: 324 | AA20: 실패 | AB20: -0.5724841493
B21: 2023-11-07 | C21: 15:35:00 | D21: 16844 | E21: 2310 | F21: 13014 | G21: 1871 | H21: -3830 | I21: 328.4 | J21: -0.3361361959 | K21: 8.724373576 | M21: 2023-11-07 | N21: 15:45:00 | O21: 18430 | P21: 1499 | Q21: 16567 | R21: 1414 | S21: -1863 | T21: 328.4 | U21: -0.5784558871 | V21: 21.91764706 | W21: 328.4 | Y21: 상승 | Z21: 334.9 | AA21: 성공 | AB21: -0.5135770235
B22: 2023-11-08 | C22: 15:35:00 | D22: 18810 | E22: 2785 | F22: 7789 | G22: 1052 | H22: -11021 | I22: 324.9 | J22: 0.6499528981 | K22: 6.35949221 | M22: 2023-11-08 | N22: 15:45:00 | O22: 16585 | P22: 2058 | Q22: 10002 | R22: 923 | S22: -6583 | T22: 325.1 | U22: 2.777608087 | V22: 5.8 | W22: 325.1 | Y22: 상승 | Z22: 331.1 | AA22: =IF(AND(Y21="상승",Z22>W21),"성공",IF(AND(Y21="하락",Z22<W21),"성공",IF(AND(Y21="상승",Z22=W21),"동일가",IF(AND(Y21="하락",Z22=W21),"동일가","실패")))) -> 성공 | AB22: =S22/H22-1 -> -0.4026857817
B23: 2023-11-09 | C23: 15:35:00 | D23: 13157 | E23: 1940 | F23: 8442 | G23: 726 | H23: -4715 | I23: 326.65 | J23: 4.846140411 | K23: 3.883855025 | M23: 2023-11-09 | N23: 15:45:00 | O23: 19892 | P23: 2460 | Q23: 11790 | R23: 1098 | S23: -8102 | T23: 326.7 | U23: 2.651526056 | V23: 5.948604993 | W23: =T23 -> 326.7 | Y23: 하락 | Z23: 325.95 | AA23: 성공 | AB23: 0.7183457052
A24: 금 | B24: 2023-11-10 | C24: 15:35:00 | D24: 14965 | E24: 2234 | F24: 15837 | G24: 2507 | H24: 872 | I24: 324.65 | J24: -0.3816345566 | K24: 3.194139194 | M24: 2023-11-10 | N24: 15:45:00 | O24: 12537 | P24: 1437 | Q24: 13881 | R24: 1574 | S24: 1344 | T24: 324.7 | U24: 0.09450676839 | V24: 9.810218978 | W24: 324.7 | Y24: 상승 | Z24: 324 | AA24: 성공 | AB24: 0.5412844037
B25: 2023-11-13 | C25: 15:35:00 | D25: 14877 | E25: 1935 | F25: 10824 | G25: 1241 | H25: -4053 | I25: 324.75 | J25: 1.033626295 | K25: 5.840057637 | M25: 2023-11-13 | N25: 15:45:00 | O25: 14131 | P25: 1907 | Q25: 10515 | R25: 1203 | S25: -3616 | T25: 325.1 | U25: 1.330580209 | V25: 5.136363636 | W25: 325.1 | Y25: =IF(H25>S25,"하락","상승") -> 상승 | Z25: 328.25 | AA25: 성공 | AB25: -0.1078213669
B26: 2023-11-14 | C26: 15:35:00 | D26: 13349 | E26: 1970 | F26: 15127 | G26: 2091 | H26: 1778 | I26: 327.65 | J26: 0.4581955055 | K26: 14.69421488 | M26: 2023-11-14 | N26: 15:45:00 | O26: 11995 | P26: 1573 | Q26: 13193 | R26: 1354 | S26: 1198 | T26: 327.8 | U26: 2.118166042 | V26: -5.470319635 | W26: 327.8 | Y26: 하락 | Z26: 326.6 | AA26: 성공 | AB26: -0.3262092238
B27: 2023-11-15 | C27: 15:35:00 | D27: 12553 | E27: 1770 | F27: 21897 | G27: 2890 | H27: 9344 | I27: 335.1 | J27: 0.4847262135 | K27: 8.342857143 | M27: 2023-11-15 | N27: 15:45:00 | O27: 13505 | P27: 1574 | Q27: 20304 | R27: 2003 | S27: 6799 | T27: 335.25 | U27: 1.556743982 | V27: 15.84848485 | W27: 335.25 | Y27: 하락 | Z27: 334.8 | AA27: 실패 | AB27: -0.2723672945
B28: 2023-11-16 | C28: 16:35:00 | D28: 15736 | E28: 1972 | F28: 15449 | G28: 1947 | H28: -287 | I28: 334.7 | J28: -0.04494458109 | K28: 11.48 | M28: 2023-11-16 | N28: 16:45:00 | O28: 14323 | P28: 1656 | Q28: 12603 | R28: 1365 | S28: -1720 | T28: 334.55 | U28: 0.5838124436 | V28: 5.910652921 | W28: 334.55 | Y28: 하락 | Z28: 334.35 | AA28: 성공 | AB28: 4.993031359
A29: 금 | B29: 2023-11-17 | C29: 15:35:00 | D29: 14539 | E29: 1874 | F29: 13556 | G29: 1595 | H29: -983 | I29: 333.05 | J29: 0.7407884832 | K29: 3.523297491 | M29: 2023-11-17 | N29: 15:45:00 | O29: 7777 | P29: 1096 | Q29: 5924 | R29: 838 | S29: -1853 | T29: 333.1 | U29: -0.02659050921 | V29: 7.182170543 | W29: 333.1 | Y29: 하락 | Z29: 334.2 | AA29: =IF(AND(Y28="상승",Z29>W28),"성공",IF(AND(Y28="하락",Z29<W28),"성공",IF(AND(Y28="상승",Z29=W28),"동일가",IF(AND(Y28="하락",Z29=W28),"동일가","실패")))) -> 성공 | AB29: =S29/H29-1 -> 0.8850457782
B30: 2023-11-20 | C30: 15:35:00 | D30: 11499 | E30: 1434 | F30: 19554 | G30: 2835 | H30: 8055 | I30: 335.55 | J30: -1.121473955 | K30: 5.749464668 | M30: 2023-11-20 | N30: 15:45:00 | O30: 4624 | P30: 708 | Q30: 8556 | R30: 1362 | S30: 3932 | T30: 335.55 | U30: -0.2491351203 | V30: 6.012232416 | W30: 335.55 | Y30: 하락 | Z30: 332.35 | AA30: 성공 | AB30: -0.5118559901
B31: 2023-11-21 | C31: 15:35:00 | D31: 13571 | E31: 1720 | F31: 13268 | G31: 1747 | H31: -303 | I31: 337.2 | J31: -0.2953824496 | K31: -11.22222222 | M31: 2023-11-21 | N31: 15:45:00 | O31: 6977 | P31: 1040 | Q31: 6827 | R31: 975 | S31: -150 | T31: 337.45 | U31: 0.2933974359 | V31: 2.307692308 | W31: 337.45 | Y31: =IF(H31>S31,"하락","상승") -> 상승 | Z31: 338 | AA31: 실패 | AB31: -0.504950495
B32: 2023-11-22 | C32: 15:35:00 | D32: 12155 | E32: 1603 | F32: 21455 | G32: 3128 | H32: 9300 | I32: 337.75 | J32: -0.7236421719 | K32: 6.098360656 | M32: 2023-11-22 | N32: 15:45:00 | O32: 9124 | P32: 1080 | Q32: 16184 | R32: 1840 | S32: 7060 | T32: 338 | U32: 0.3475040258 | V32: 9.289473684 | W32: 338 | Y32: 하락 | Z32: 335 | AA32: 실패 | AB32: -0.2408602151
B33: 2023-11-23 | C33: 15:35:00 | D33: 11017 | E33: 1962 | F33: 11446 | G33: 1862 | H33: 429 | I33: 337.6 | J33: 0.5319650152 | K33: -4.29 | M33: 2023-11-23 | N33: 15:45:00 | O33: 9842 | P33: 1464 | Q33: 11671 | R33: 1161 | S33: 1829 | T33: 337.95 | U33: 3.329863317 | V33: -6.03630363 | W33: 337.95 | Y33: 상승 | Z33: 337.45 | AA33: 성공 | AB33: 3.263403263
A34: 금 | B34: 2023-11-24 | C34: 15:35:00 | D34: 14724 | E34: 2624 | F34: 8163 | G34: 1053 | H34: -6561 | I34: 334.75 | J34: 2.140856264 | K34: 4.176320815 | M34: 2023-11-24 | N34: 15:45:00 | O34: 14916 | P34: 2014 | Q34: 8718 | R34: 815 | S34: -6198 | T34: 334.7 | U34: 3.290775614 | V34: 5.169307756 | W34: 334.7 | Y34: 상승 | Z34: 337.2 | AA34: 실패 | AB34: -0.05532693187
B35: 2023-11-27 | C35: 15:35:00 | D35: 16972 | E35: 2558 | F35: 14481 | G35: 1862 | H35: -2491 | I35: 334.2 | J35: 1.142250382 | K35: 3.579022989 | M35: 2023-11-27 | N35: 15:45:00 | O35: 11748 | P35: 1759 | Q35: 12065 | R35: 1236 | S35: 317 | T35: 334.2 | U35: 3.082532091 | V35: -0.6061185468 | W35: 334.2 | Y35: 상승 | Z35: 334.35 | AA35: 실패 | AB35: -1.127258129
B36: 2023-11-28 | C36: 15:35:00 | D36: 10701 | E36: 1284 | F36: 19672 | G36: 3042 | H36: 8971 | I36: 338.25 | J36: -1.86731399 | K36: 5.102957907 | M36: 2023-11-28 | N36: 15:45:00 | O36: 10306 | P36: 1177 | Q36: 16153 | R36: 1705 | S36: 5847 | T36: 338.4 | U36: 0.7177405651 | V36: 11.07386364 | W36: 338.4 | Y36: 하락 | Z36: 335.75 | AA36: =IF(AND(Y35="상승",Z36>W35),"성공",IF(AND(Y35="하락",Z36<W35),"성공",IF(AND(Y35="상승",Z36=W35),"동일가",IF(AND(Y35="하락",Z36=W35),"동일가","실패")))) -> 성공 | AB36: =S36/H36-1 -> -0.3482331959
B37: 2023-11-29 | C37: 15:35:00 | D37: 13518 | E37: 1890 | F37: 16056 | G37: 2344 | H37: 2538 | I37: 337.3 | J37: -0.3025516008 | K37: 5.59030837 | M37: 2023-11-29 | N37: 15:45:00 | O37: 9769 | P37: 1267 | Q37: 12661 | R37: 1346 | S37: 2892 | T37: 337.55 | U37: 1.696049917 | V37: 36.60759494 | W37: 337.55 | Y37: =IF(H37>S37,"하락","상승") -> 상승 | Z37: 338.35 | AA37: 성공 | AB37: 0.1394799054
B38: 2023-11-30 | C38: 15:35:00 | D38: 12252 | E38: 1347 | F38: 20299 | G38: 2994 | H38: 8047 | I38: 339.05 | J38: -2.315875255 | K38: 4.885853066 | M38: 2023-11-30 | N38: 15:45:00 | O38: 12711 | P38: 1064 | Q38: 15831 | R38: 1811 | S38: 3120 | T38: 339.15 | U38: -3.204849333 | V38: 4.176706827 | W38: 339.15 | Y38: 하락 | Z38: 337.05 | AA38: 실패 | AB38: -0.6122778675
A39: 금 | B39: 2023-12-01 | C39: 15:35:00 | D39: 16548 | E39: 2482 | F39: 11783 | G39: 1535 | H39: -4765 | I39: 335.15 | J39: 1.009017631 | K39: 5.031678986 | M39: 2023-12-01 | N39: 15:45:00 | O39: 13881 | P39: 1676 | Q39: 10641 | R39: 1152 | S39: -3240 | T39: 335.5 | U39: 0.9547595963 | V39: 6.183206107 | W39: 335.5 | Y39: 상승 | Z39: 337.75 | AA39: 성공 | AB39: -0.3200419727
B40: 2023-12-04 | C40: 15:35:00 | D40: 14822 | E40: 1997 | F40: 14749 | G40: 1800 | H40: -73 | I40: 336.7 | J40: 0.7717556891 | K40: 0.3705583756 | M40: 2023-12-04 | N40: 15:45:00 | O40: 12105 | P40: 1572 | Q40: 11318 | R40: 1157 | S40: -787 | T40: 336.7 | U40: 2.081813653 | V40: 1.896385542 | W40: 336.7 | Y40: 하락 | Z40: 337.05 | AA40: 성공 | AB40: 9.780821918
B41: 2023-12-05 | C41: 15:35:00 | D41: 15391 | E41: 2238 | F41: 10643 | G41: 1102 | H41: -4748 | I41: 332.65 | J41: 2.780772306 | K41: 4.179577465 | M41: 2023-12-05 | N41: 15:45:00 | O41: 14028 | P41: 1583 | Q41: 10041 | R41: 839 | S41: -3987 | T41: 332.65 | U41: 3.106163747 | V41: 5.358870968 | W41: 332.65 | Y41: 상승 | Z41: 334.15 | AA41: 성공 | AB41: -0.1602780118
B42: 2023-12-06 | C42: 15:35:00 | D42: 13958 | E42: 1907 | F42: 15189 | G42: 1516 | H42: 1231 | I42: 333.9 | J42: 2.699779524 | K42: -3.148337596 | M42: 2023-12-06 | N42: 15:45:00 | O42: 12316 | P42: 1381 | Q42: 11653 | R42: 1107 | S42: -663 | T42: 333.5 | U42: 1.608473364 | V42: 2.419708029 | W42: 333.5 | Y42: 하락 | Z42: 333.8 | AA42: =IF(AND(Y41="상승",Z42>W41),"성공",IF(AND(Y41="하락",Z42<W41),"성공",IF(AND(Y41="상승",Z42=W41),"동일가",IF(AND(Y41="하락",Z42=W41),"동일가","실패")))) -> 성공 | AB42: =S42/H42-1 -> -1.538586515
B43: 2023-12-07 | C43: 15:35:00 | D43: 12299 | E43: 1489 | F43: 15158 | G43: 1957 | H43: 2859 | I43: 333 | J43: -0.5143771064 | K43: 6.108974359 | M43: 2023-12-07 | N43: 15:45:00 | O43: 11173 | P43: 1117 | Q43: 12060 | R43: 1519 | S43: 887 | T43: 332.4 | U43: -2.063251927 | V43: 2.206467662 | W43: 332.4 | Y43: =IF(H43>S43,"하락","상승") -> 하락 | Z43: 331.8 | AA43: =IF(AND(Y42="상승",Z43>W42),"성공",IF(AND(Y42="하락",Z43<W42),"성공",IF(AND(Y42="상승",Z43=W42),"동일가",IF(AND(Y42="하락",Z43=W42),"동일가","실패")))) -> 성공 | AB43: =S43/H43-1 -> -0.6897516614
B44: 2023-12-08 | C44: 15:35:00 | D44: 11485 | E44: 1233 | F44: 17894 | G44: 2482 | H44: 6409 | I44: 337.2 | J44: -2.105171182 | K44: 5.131305044 | M44: 2023-12-08 | N44: 15:45:00 | O44: 12935 | P44: 1290 | Q44: 15739 | R44: 1812 | S44: 2804 | T44: 337.25 | U44: -1.341149443 | V44: 5.37164751 | W44: 337.25 | Y44: =IF(H44>S44,"하락","상승") -> 하락 | Z44: 334.8 | AA44: =IF(AND(Y43="상승",Z44>W43),"성공",IF(AND(Y43="하락",Z44<W43),"성공",IF(AND(Y43="상승",Z44=W43),"동일가",IF(AND(Y43="하락",Z44=W43),"동일가","실패")))) -> 실패 | AB44: =S44/H44-1 -> -0.5624902481
B45: 2023-12-11 | C45: 15:35:00 | D45: 13135 | E45: 1427 | F45: 17334 | G45: 2336 | H45: 4199 | I45: 338.3 | J45: -1.784248375 | K45: 4.619361936 | M45: 2023-12-11 | N45: 15:45:00 | O45: 11811 | P45: 1168 | Q45: 12822 | R45: 1447 | S45: 1011 | T45: 338.25 | U45: -1.25106562 | V45: 3.623655914 | W45: 338.25 | Y45: =IF(H45>S45,"하락","상승") -> 하락 | Z45: 338 | AA45: =IF(AND(Y44="상승",Z45>W44),"성공",IF(AND(Y44="하락",Z45<W44),"성공",IF(AND(Y44="상승",Z45=W44),"동일가",IF(AND(Y44="하락",Z45=W44),"동일가","실패")))) -> 실패 | AB45: =S45/H45-1 -> -0.7592283877
B46: 2023-12-12 | C46: 15:35:00 | D46: 12966 | E46: 1565 | F46: 15848 | G46: 1966 | H46: 2882 | I46: 340.45 | J46: -0.2239463857 | K46: 7.187032419 | M46: 2023-12-12 | N46: 15:45:00 | O46: 10545 | P46: 1314 | Q46: 11919 | R46: 1160 | S46: 1374 | T46: 340.5 | U46: 2.249885845 | V46: -8.922077922 | W46: 340.5 | Y46: =IF(H46>S46,"하락","상승") -> 하락 | Z46: 340.05 | AA46: =IF(AND(Y45="상승",Z46>W45),"성공",IF(AND(Y45="하락",Z46<W45),"성공",IF(AND(Y45="상승",Z46=W45),"동일가",IF(AND(Y45="하락",Z46=W45),"동일가","실패")))) -> 실패 | AB46: =S46/H46-1 -> -0.5232477446
B47: 2023-12-13 | C47: 15:35:00 | D47: 17299 | E47: 2207 | F47: 10286 | G47: 1128 | H47: -7013 | I47: 336.8 | J47: 1.280552369 | K47: 6.499536608 | M47: 2023-12-13 | N47: 15:45:00 | O47: 12052 | P47: 1597 | Q47: 7190 | R47: 824 | S47: -4862 | T47: 337 | U47: 1.179078187 | V47: 6.289780078 | W47: 337 | Y47: =IF(H47>S47,"하락","상승") -> 상승 | Z47: 340.95 | AA47: =IF(AND(Y46="상승",Z47>W46),"성공",IF(AND(Y46="하락",Z47<W46),"성공",IF(AND(Y46="상승",Z47=W46),"동일가",IF(AND(Y46="하락",Z47=W46),"동일가","실패")))) -> 실패 | AB47: =S47/H47-1 -> -0.3067160987
B48: 2023-12-14 | C48: 15:35:00 | D48: 5049 | E48: 498 | F48: 5005 | G48: 446 | H48: -44 | I48: 340.75 | J48: 1.083418877 | K48: 0.8461538462 | M48: 2023-12-14 | N48: 15:45:00 | O48: 5049 | P48: 498 | Q48: 5005 | R48: 446 | S48: -44 | T48: 340.75 | U48: 1.083418877 | V48: 0.8461538462 | W48: 340.75 | Y48: =IF(H48>S48,"하락","상승") -> 상승 | Z48: 341.25 | AA48: =IF(AND(Y47="상승",Z48>W47),"성공",IF(AND(Y47="하락",Z48<W47),"성공",IF(AND(Y47="상승",Z48=W47),"동일가",IF(AND(Y47="하락",Z48=W47),"동일가","실패")))) -> 성공 | AB48: =S48/H48-1 -> 0
B49: 2023-12-15 | C49: 15:35:00 | D49: 8978 | E49: 1586 | F49: 9221 | G49: 1561 | H49: 243 | I49: 343.55 | J49: 0.2463289853 | K49: -9.72 | M49: 2023-12-15 | N49: 15:45:00 | O49: 9208 | P49: 1301 | Q49: 8820 | R49: 1241 | S49: -388 | T49: 343.25 | U49: 0.02953904546 | V49: 6.466666667 | W49: 343.25 | Y49: =IF(H49>S49,"하락","상승") -> 하락 | Z49: 341.3 | AA49: =IF(AND(Y48="상승",Z49>W48),"성공",IF(AND(Y48="하락",Z49<W48),"성공",IF(AND(Y48="상승",Z49=W48),"동일가",IF(AND(Y48="하락",Z49=W48),"동일가","실패")))) -> 성공 | AB49: =S49/H49-1 -> -2.596707819
B50: ='1. 매수매도 총잔량'!$A$3 -> 2023-12-15 | C50: ='1. 매수매도 총잔량'!$A$424 -> 15:35:00 | D50: ='1. 매수매도 총잔량'!$B$424 -> 8978 | E50: ='1. 매수매도 총잔량'!$C$424 -> 1586 | F50: ='1. 매수매도 총잔량'!$D$424 -> 9221 | G50: ='1. 매수매도 총잔량'!$E$424 -> 1561 | H50: ='1. 매수매도 총잔량'!$F$424 -> 243 | I50: ='1. 매수매도 총잔량'!$G$425 -> 343.55 | J50: ='1. 매수매도 총잔량'!$H$424 -> 0.2463289853 | K50: ='1. 매수매도 총잔량'!$I$424 -> -9.72 | M50: ='1. 매수매도 총잔량'!$A$3 -> 2023-12-15 | N50: ='1. 매수매도 총잔량'!$A$434 -> 15:45:00 | O50: ='1. 매수매도 총잔량'!$B$434 -> 9208 | P50: ='1. 매수매도 총잔량'!$C$434 -> 1301 | Q50: ='1. 매수매도 총잔량'!$D$434 -> 8820 | R50: ='1. 매수매도 총잔량'!$E$434 -> 1241 | S50: ='1. 매수매도 총잔량'!$F$434 -> -388 | T50: ='1. 매수매도 총잔량'!$G$435 -> 343.25 | U50: ='1. 매수매도 총잔량'!$H$434 -> 0.02953904546 | V50: ='1. 매수매도 총잔량'!$I$434 -> 6.466666667 | W50: =T50 -> 343.25 | Y50: =IF(H50>S50,"하락","상승") -> 하락 | Z50: =[1]!'101v3000.029' ->  | AA50: =IF(AND(Y49="상승",Z50>W49),"성공",IF(AND(Y49="하락",Z50<W49),"성공",IF(AND(Y49="상승",Z50=W49),"동일가",IF(AND(Y49="하락",Z50=W49),"동일가","실패")))) ->  | AB50: =S50/H50-1 -> -2.596707819
B51: ='1. 매수매도 총잔량'!$A$3 -> 2023-12-15 | C51: ='1. 매수매도 총잔량'!$A$424 -> 15:35:00 | D51: ='1. 매수매도 총잔량'!$B$424 -> 8978 | E51: ='1. 매수매도 총잔량'!$C$424 -> 1586 | F51: ='1. 매수매도 총잔량'!$D$424 -> 9221 | G51: ='1. 매수매도 총잔량'!$E$424 -> 1561 | H51: ='1. 매수매도 총잔량'!$F$424 -> 243 | I51: ='1. 매수매도 총잔량'!$G$425 -> 343.55 | J51: ='1. 매수매도 총잔량'!$H$424 -> 0.2463289853 | K51: ='1. 매수매도 총잔량'!$I$424 -> -9.72 | M51: ='1. 매수매도 총잔량'!$A$3 -> 2023-12-15 | N51: ='1. 매수매도 총잔량'!$A$434 -> 15:45:00 | O51: ='1. 매수매도 총잔량'!$B$434 -> 9208 | P51: ='1. 매수매도 총잔량'!$C$434 -> 1301 | Q51: ='1. 매수매도 총잔량'!$D$434 -> 8820 | R51: ='1. 매수매도 총잔량'!$E$434 -> 1241 | S51: ='1. 매수매도 총잔량'!$F$434 -> -388 | T51: ='1. 매수매도 총잔량'!$G$435 -> 343.25 | U51: ='1. 매수매도 총잔량'!$H$434 -> 0.02953904546 | V51: ='1. 매수매도 총잔량'!$I$434 -> 6.466666667 | W51: =T51 -> 343.25 | Y51: =IF(H51>S51,"하락","상승") -> 하락 | Z51: =[1]!'101v3000.029' ->  | AA51: =IF(AND(Y50="상승",Z51>W50),"성공",IF(AND(Y50="하락",Z51<W50),"성공",IF(AND(Y50="상승",Z51=W50),"동일가",IF(AND(Y50="하락",Z51=W50),"동일가","실패")))) ->  | AB51: =S51/H51-1 -> -2.596707819
